Cogmind - Beta 11.1 @@@ ROGUE MODE // 2022.06.23 @ 19:51:17 Player: ktur Result: Destroyed by G-47 Trooper with Particle Gun Performance ------------- Evolutions (2) 1000 Regions Visited (6) 1200 Robots Destroyed (126) 630 Value Destroyed (3856) 3856 Prototype IDs (9) 180 Alien Tech Used (0) 0 Bonus (607) 607 TOTAL SCORE: 7473 Bonus ------- High Alert Combat Kills 640 Friendly Fire -33 Cogmind --------- Core Integrity 0/550 Matter 227/300 Energy 280/280 System Corruption 2% Temperature Cool (9) Movement Treading (240) Ox1 Location -8/Storage Parts ------- > --- POWER (1) -------- Cooled Ion Engine > --- PROPULSION (3) --- Light Treads Light Treads Light Treads > --- UTILITY (5) ------ Heat Sink Heat Sink Huge Storage Unit Improved Targeting Computer Hardened Light Armor Plating > --- WEAPON (2) ------- Heavy Assault Rifle Grenade Launcher > --- INVENTORY (25) --- Cooled Ion Engine Improved Deuterium Engine Light Treads Light Treads High-capacity Matter Pod (200) Machine Analyzer Improved Signal Interpreter Long-range Tractor Beam Bomb Drone Bay (16/16) Improved EM Shotgun Improved EM Shotgun Improved EM Shotgun Improved Medium Laser Improved Medium Laser Advanced Beam Rifle Advanced Beam Rifle EM Pulse Cannon Advanced Beam Cannon Advanced Beam Cannon Advanced Beam Cannon Mini Grenade Launcher Plasma Cutter Heavy Hammer Peak State ------------ > --- POWER ------------ Improved Deuterium Engine > --- PROPULSION ------- Light Treads Light Treads Light Treads > --- UTILITY ---------- Improved Heat Sink High-capacity Storage Unit Improved Targeting Computer Bomb Drone Bay > --- WEAPON ----------- Improved Spread Laser Improved Spread Laser > --- INVENTORY -------- Improved Deuterium Engine Improved Deuterium Engine Improved Deuterium Engine Light Treads Light Treads Improved Heat Sink High-capacity Storage Unit High-capacity Matter Pod Hardened Light Armor Plating Hardened Light Armor Plating Hardened Light Armor Plating Improved EM Shotgun Improved EM Shotgun Improved EM Shotgun Particle Gun Particle Gun Improved Spread Laser Grenade Launcher Grenade Launcher Katana [Rating: 41] Favorites ----------- Power Improved Deuterium Engine Engine Improved Deuterium Engine Power Core Light Nuclear Core Propulsion Light Treads Treads Light Treads Utility Hardened Light Armor Plating Device Improved Heat Sink Storage High-capacity Storage Unit Processor Improved Targeting Computer Protection Hardened Light Armor Plating Weapon Particle Gun Energy Gun Particle Gun Ballistic Gun Heavy Assault Rifle Launcher Grenade Launcher Build | -11 -10 -10 -10 -9 -8 -8 ------- Run | Scr Mat Min Exi Min Mat Sto Slots Evolved 4 | . . . . . 4 . Power . | . . . . . . . Propulsion 1 | . . . . . 1 . Utility 3 | . . . . . 3 . Weapon . | . . . . . . . Parts Attached 139 | 6 21 2 1 2 82 25 Power 12 | 1 3 . . . 7 1 Engine 11 | 1 3 . . . 6 1 Core 1 | . . . . . 1 . Reactor . | . . . . . . . Propulsion 34 | 2 6 1 . . 18 7 Treads 34 | 2 6 1 . . 18 7 Leg . | . . . . . . . Wheel . | . . . . . . . Hover . | . . . . . . . Flight . | . . . . . . . Utility 29 | 1 4 . 1 . 19 4 Device 7 | . . . . . 5 2 Storage 6 | 1 2 . 1 . 2 . Processor 3 | . 2 . . . 1 . Hackware . | . . . . . . . Protection 13 | . . . . . 11 2 Artifact . | . . . . . . . Weapon 64 | 2 8 1 . 2 38 13 Energy Gun 40 | 1 7 1 . 2 22 7 Energy Cannon . | . . . . . . . Ballistic Gun 11 | 1 . . . . 7 3 Ballistic Cannon . | . . . . . . . Launcher 13 | . 1 . . . 9 3 Special Weapon . | . . . . . . . Impact Weapon . | . . . . . . . Slashing Weapon . | . . . . . . . Piercing Weapon . | . . . . . . . Special Melee Weapon . | . . . . . . . Unidentified Prototypes 5 | . . . . . 5 . Parts Lost 28 | . 1 . . 1 14 12 Power 3 | . . . . 1 1 1 Propulsion 8 | . . . . . 4 4 Utility 9 | . . . . . 5 4 Weapon 8 | . 1 . . . 4 3 Highest Loss Streak 7 | . 1 . . 1 4 7 To Critical Strikes . | . . . . . . . Average Slot Usage (%) 92 | . 98 100 73 94 95 82 Engine 10 | . 13 14 14 11 8 5 Treads 26 | . 28 28 28 28 24 25 Device 5 | . . . . . 9 6 Storage 10 | . 14 14 14 14 9 9 Processor 9 | . 13 14 14 14 7 9 Protection 10 | . . . . . 18 10 Energy Gun 15 | . 25 28 2 25 12 11 Ballistic Gun 3 | . 2 . . . 4 3 Naked Turns . | . . . . . . . Heaviest Build 109 | 14 31 31 45 51 109 109 Greatest Support 60 | 40 40 40 40 40 60 60 Greatest Overweight (x) 2 | 1 . . 1 1 1 2 Average Overweight (x) . | . . . . 1 . 1 Largest Inventory Capacity 25 | 8 15 15 20 20 25 25 Average Capacity 18 | 6 13 15 18 20 20 25 Most Carried 25 | 7 15 15 18 18 22 25 Average Carried 17 | 4 12 15 16 17 19 23 Final Capacity 25 | 8 15 15 20 20 25 25 Final Carried 24 | 6 15 15 18 18 19 24 Class Distribution -------------------- 58% | Mutant 41% | Scavenger-Mutant Dominant Class ---------------- Mutant | -10/Materials Mutant | -10/Mines Mutant | -10/Exiles Mutant | -9/Mines Scavenger-Mutant | -8/Materials Mutant | -8/Storage Resources | -11 -10 -10 -10 -9 -8 -8 ----------- Run | Scr Mat Min Exi Min Mat Sto Matter Collected 2588 | 257 549 27 . 13 1388 354 Remotely . | . . . . . . . Salvage Created 4461 | . 809 34 . 37 2601 980 Parts 223 | . 52 4 . 5 113 49 Haulers Intercepted 7 | . 2 . . . 4 1 Recyclers Shooed 7 | . 2 . . . 4 1 Parts Field Recycled . | . . . . . . . Retrieved Matter . | . . . . . . . Parts Self-Destructed . | . . . . . . . Prevented . | . . . . . . . Kills | -11 -10 -10 -10 -9 -8 -8 ------- Run | Scr Mat Min Exi Min Mat Sto Combat Hostiles Destroyed 98 | . 19 3 . 3 51 22 Guns 63 | . 14 3 . 3 26 17 AOE 33 | . 5 . . . 23 5 Classes Destroyed 14 | . 7 . . . 7 . Worker 8 | . 3 . . . 2 3 Builder 4 | . . . . . 4 . Hauler 7 | . 2 . . . 4 1 Recycler 5 | . 1 . . . 4 . Mechanic 1 | . . . . . 1 . Operator 5 | . 2 . . . 3 . Watcher 5 | . 2 . . . 3 . Swarmer 14 | . 3 3 . 3 3 2 Grunt 62 | . 16 . . . 31 15 Brawler 5 | . . . . . 5 . Duelist 4 | . . . . . 3 1 Protector 1 | . . . . . 1 . Sentry 11 | . . . . . 7 4 Hunter 1 | . . . . . 1 . Best Kill Streak 10 | . 7 3 . 3 10 5 Combat Bots Only 8 | . 5 3 . 3 8 5 Max Kills in Single Turn 4 | . 2 1 . 1 4 2 Gunslinging . | . . . . . . . Exploded 4 | . 2 . . . 4 2 Melee . | . . . . . . . Uniques/NPCs Destroyed . | . . . . . . . Combat | -11 -10 -10 -10 -9 -8 -8 -------- Run | Scr Mat Min Exi Min Mat Sto Damage Taken 6495 | . 823 182 . 108 3328 2054 Core 725 | . 75 72 . 22 344 212 Absorbed by Shields . | . . . . . . . Redirected to Shielding 12 | . . . . . 12 . Regen/Repaired (Parts) 829 | . 299 . . . 346 184 Core Remaining (%) 66 | 100 . . . 32 . . Volleys Fired 349 | . 71 8 . 7 178 85 Largest 2 | . 2 2 . 2 2 2 Hottest 150 | . 130 130 . 130 150 117 Shots Fired 580 | . 129 16 . 14 301 120 Gun 537 | . 125 16 . 14 273 109 Cannon . | . . . . . . . Launcher 43 | . 4 . . . 28 11 Special . | . . . . . . . Kinetic 134 | . 29 . . . 78 27 Thermal 399 | . 96 16 . 14 191 82 Explosive 43 | . 4 . . . 28 11 Electromagnetic 4 | . . . . . 4 . Robot Hit Streak 19 | . 11 6 . 3 19 14 Robot Miss Streak 5 | . 5 5 . 5 4 4 Penetration Max . | . . . . . . . Secondary Targets 8 | . 2 . . . 1 5 Max Gunslinging Chain 1 | . 1 . . . 1 1 Shots Hit Robots 387 | . 82 7 . 6 215 77 Core Hits 279 | . 44 4 . 3 176 52 Critical Kills 1 | . . . . . 1 . Critical Parts Destroyed . | . . . . . . . Critical Strikes 19 | . 4 . . 1 11 3 Burn 18 | . 4 . . 1 10 3 Destroy 1 | . . . . . 1 . Melee Attacks . | . . . . . . . Impact . | . . . . . . . Slashing . | . . . . . . . Piercing . | . . . . . . . Sneak Attacks . | . . . . . . . Combat Hostiles . | . . . . . . . Follow-up Attacks . | . . . . . . . Damage Inflicted 9974 | 1 1585 183 . 109 6152 1944 Guns 6393 | . 1234 183 . 98 3613 1265 Cannons . | . . . . . . . Explosions 3441 | . 279 . . . 2503 659 Melee . | . . . . . . . Ramming 140 | 1 72 . . 11 36 20 Kinetic 1420 | . 298 . . . 824 298 Thermal 4967 | . 936 183 . 98 2783 967 Explosive 3390 | . 279 . . . 2452 659 Electromagnetic 57 | . . . . . 57 . Impact . | . . . . . . . Slashing . | . . . . . . . Piercing . | . . . . . . . Highest Corruption 3 | . 3 3 3 3 . 2 Average Corruption 2 | . 2 3 3 3 . 2 Corruption Purged . | . . . . . . . Corruption Blocked . | . . . . . . . Effects 48 | . 17 6 14 9 . 2 Message Errors 9 | . 5 2 1 1 . . Matter Fused 14 | . 2 3 5 4 . . Heat Flow Errors 7 | . 3 1 2 . . 1 Energy Discharges 6 | . 3 . 2 1 . . Data Loss (minor) 8 | . 2 . 4 2 . . Data Loss (major) 1 | . . . . 1 . . Alerts 1 | . 1 . . . . . Weapon Failures 2 | . 1 . . . . 1 Overload Shots . | . . . . . . . Overflow Damage 64 | . . . . . 46 18 Projectiles . | . . . . . . . Explosions 63 | . . . . . 45 18 Melee 1 | . . . . . 1 . Knockbacks 1 | . . . . . . 1 Impact 1 | . . . . . . 1 Kinetic . | . . . . . . . Secondary . | . . . . . . . Self-Inflicted Damage 418 | . 19 . . . 287 112 Shots 17 | . 1 . . . 12 4 Rammed 23 | 3 12 . . 1 5 2 Targets Rammed 28 | 3 15 . . 1 5 4 Kicked . | . . . . . . . Crushed 5 | . 3 . . . . 2 Highest Temperature 547 | . 483 547 192 309 467 397 Average Temperature 129 | . 126 241 112 175 108 141 Received Heat Transfer 2796 | . 303 . . . 1467 1026 Effects 20 | . 5 8 . . 5 2 Shutdowns 5 | . 2 1 . . 2 . Energy Bleed 2 | . 1 . . . 1 . Interference 3 | . 1 . . . . 2 Matter Decay 2 | . . 1 . . 1 . Short Circuit 1 | . 1 . . . . . Damage (minor) 2 | . . 1 . . 1 . Damage (major) 4 | . . 4 . . . . Damage (core) 1 | . . 1 . . . . Siege Activations . | . . . . . . . Robots Corrupted . | . . . . . . . Combat Hostiles . | . . . . . . . Parts Fried . | . . . . . . . Impact Corruptions 1 | . . . . . 1 . Robots Melted 2 | . . . . . 2 . Combat Hostiles 2 | . . . . . 2 . Parts Melted 15 | . 6 . . 1 5 3 Heat Transferred 10677 | . 2590 407 . 296 5016 2368 Parts Sabotaged . | . . . . . . . Parts Stolen . | . . . . . . . Parts Stripped . | . . . . . . . Power Chain Reactions 1 | . . . . . 1 . Missiles Intercepted . | . . . . . . . Alert | -11 -10 -10 -10 -9 -8 -8 ------- Run | Scr Mat Min Exi Min Mat Sto Peak Influence 1001 | . 292 169 . 60 1001 705 Initial 416 | . . 99 . . 23 416 Average 319 | . 164 148 . 10 396 525 Maximum Alert Level 3 | . 1 . . . 3 3 Low Security (%) 35 | 100 63 100 . 100 17 . Level 1 36 | . 36 . . . 52 2 Level 2 17 | . . . . . 11 92 Level 3 10 | . . . . . 18 5 Level 4 . | . . . . . . . Level 5 . | . . . . . . . High Security . | . . . . . . . Max Security . | . . . . . . . Sterilizations 1 | . . . . . 1 . Squads Dispatched 19 | . 4 . . . 10 5 Investigation 5 | . 2 . . . 1 2 Extermination . | . . . . . . . Reinforcement 9 | . 2 . . . 6 1 Assault 3 | . . . . . 3 . Garrison 2 | . . . . . . 2 Intercept . | . . . . . . . Searches Triggered . | . . . . . . . Construction Impeded 2 | . . . . . 2 . Haulers Reinforced . | . . . . . . . Active Scanning Responses . | . . . . . . . Cargo Convoy Interrupts . | . . . . . . . Stealth | -11 -10 -10 -10 -9 -8 -8 --------- Run | Scr Mat Min Exi Min Mat Sto Distress Signals 8 | . 1 . . . 6 1 Communications Jammed . | . . . . . . . Distress Signals . | . . . . . . . Times Spotted 146 | . 37 3 . 3 76 27 Peak Tracking Total 8 | . 6 3 . 3 8 5 Tactical Retreats 5 | . . . . . 5 . Traps | -11 -10 -10 -10 -9 -8 -8 ------- Run | Scr Mat Min Exi Min Mat Sto Traps Triggered 4 | . 3 . . . . 1 Indirectly . | . . . . . . . Trap Hack Attempts . | . . . . . . . Triggered . | . . . . . . . Disarmed . | . . . . . . . Reprogrammed . | . . . . . . . Reused . | . . . . . . . Traps Extracted . | . . . . . . . Installed . | . . . . . . . Triggered . | . . . . . . . Machines | -11 -10 -10 -10 -9 -8 -8 ---------- Run | Scr Mat Min Exi Min Mat Sto Machines Disabled 6 | . 1 . . . 5 . Max in Single Turn 2 | . 1 . . . 2 . Garrison Access 2 | . . . . . 1 1 Machines Sabotaged . | . . . . . . . Garrisons Compromised . | . . . . . . . Overloaded Fab Kills . | . . . . . . . Hacking | -11 -10 -10 -10 -9 -8 -8 --------- Run | Scr Mat Min Exi Min Mat Sto Machines Accessed 26 | . 8 . 1 1 10 6 Terminals 15 | . 5 . . . 6 4 Fabricators . | . . . . . . . Repair Stations 4 | . 1 . . . 2 1 Recycling Units 3 | . 2 . . . 1 . Scanalyzers . | . . . . . . . Garrison Access 2 | . . . . . 1 1 Total Hacks 95 | . 25 . 23 1 27 19 Successful 66 | . 17 . 23 1 19 6 Failed 28 | . 7 . . . 8 13 Catastrophic 3 | . 1 . . . 1 1 Database Lockouts 1 | . 1 . . . . . Manual 30 | . 12 . . . 9 9 Terminals 41 | . 16 . . . 14 11 Fabricators . | . . . . . . . Repair Stations 20 | . 6 . . . 9 5 Recycling Units 5 | . 3 . . . 2 . Scanalyzers . | . . . . . . . Garrison Access 5 | . . . . . 2 3 Terminal Hacks 38 | . 7 . 23 1 6 1 Record 23 | . . . 23 . . . Part Schematic 2 | . . . . . 2 . Robot Analysis 2 | . 1 . . . 1 . Prototype ID Bank 3 | . 1 . . . 1 1 Open Door 1 | . . . . 1 . . Alert Level 3 | . 2 . . . 1 . Unreport Threat 1 | . 1 . . . . . Locate Traps 1 | . . . . . 1 . Hauler Manifests 2 | . 2 . . . . . Fabricator Hacks . | . . . . . . . Repair Station Hacks 18 | . 6 . . . 8 4 Scan Component 9 | . 3 . . . 4 2 Repair 9 | . 3 . . . 4 2 Recycling Unit Hacks 1 | . . . . . 1 . Retrieve Components 1 | . . . . . 1 . Scanalyzer . | . . . . . . . Garrison Access Hacks 2 | . . . . . 1 1 Seal Access 2 | . . . . . 1 1 Unauthorized Hacks 7 | . 4 . . . 3 . Terminals 4 | . 2 . . . 2 . Botnet 3 | . 1 . . . 2 . Operators 1 | . 1 . . . . . Fabricators . | . . . . . . . Repair Stations . | . . . . . . . Recycling Units 3 | . 2 . . . 1 . Tunnel 3 | . 2 . . . 1 . Scanalyzers . | . . . . . . . Garrison Access . | . . . . . . . Data Cores Recovered . | . . . . . . . Used . | . . . . . . . Hacking Detections 21 | . 6 . . . 9 6 Full Trace Events 3 | . 1 . . . . 2 Feedback Events . | . . . . . . . Feedback Blocked . | . . . . . . . Robot Schematics Acquired . | . . . . . . . Robots Built . | . . . . . . . Authchips . | . . . . . . . Time . | . . . . . . . Total Robot Build Rating . | . . . . . . . Part Schematics Acquired 2 | . . . . . 2 . Parts Built . | . . . . . . . Authchips . | . . . . . . . Time . | . . . . . . . Total Part Build Rating . | . . . . . . . Parts Repaired 9 | . 3 . . . 4 2 Time 274 | . 84 . . . 132 58 Parts Recycled . | . . . . . . . Recycled Matter . | . . . . . . . Retrieved Matter . | . . . . . . . Retrieved Components 10 | . . . . . 10 . Parts Scanalyzed . | . . . . . . . Part Schematics Acquired . | . . . . . . . Parts Damaged . | . . . . . . . Bothacking | -11 -10 -10 -10 -9 -8 -8 ------------ Run | Scr Mat Min Exi Min Mat Sto Used RIF Installer . | . . . . . . . Robots Hacked . | . . . . . . . Non-combat . | . . . . . . . Combat . | . . . . . . . Robot Hacks Applied . | . . . . . . . Relay Couplers Released . | . . . . . . . Fabnet Peak Effective % . | . . . . . . . Robots Rewired . | . . . . . . . Allies Hacked . | . . . . . . . Hacks Repelled . | . . . . . . . Allies | -11 -10 -10 -10 -9 -8 -8 -------- Run | Scr Mat Min Exi Min Mat Sto Total Allies 1 | . . . . 1 . . Largest Group 1 | . . . . 1 . . Highest-Rated Group 31 | . . . . 31 . . Highest-Rated Ally 31 | . . . . 31 . . Total Orders . | . . . . . . . Ally Attacks . | . . . . . . . Total Damage . | . . . . . . . Kills . | . . . . . . . Allies Corrupted . | . . . . . . . Allies Melted . | . . . . . . . Intel | -11 -10 -10 -10 -9 -8 -8 ------- Run | Scr Mat Min Exi Min Mat Sto Robot Analysis Total 2 | . 1 . . . 1 . Derelict Logs Recovered 1 | . . 1 . . . . Drone Launches . | . . . . . . . Drone Recoveries . | . . . . . . . Exploration | -11 -10 -10 -10 -9 -8 -8 ------------- Run | Scr Mat Min Exi Min Mat Sto Turns Passed 8198 | 102 1595 300 655 545 4096 905 Spaces Moved 3061 | 57 745 166 320 213 1335 225 Core 11 | 11 . . . . . . Treads 3050 | 46 745 166 320 213 1335 225 Legs . | . . . . . . . Wheels . | . . . . . . . Hover . | . . . . . . . Flight . | . . . . . . . Fastest Speed 50 | 50 160 160 160 240 160 240 Average Speed 210 | 144 160 160 203 240 237 249 Slowest Speed 325 | 160 160 160 240 240 240 325 Overloaded Moves . | . . . . . . . Propulsion Burnouts . | . . . . . . . Robots Hopped . | . . . . . . . Cave-ins Triggered . | . . . . . . . Exploration Rate (%) 49 | 3 98 29 60 36 83 37 Regions Visited 6 Branch Regions 4 Pre-discovered Areas 4 | . 2 . 1 . 1 . Known Exits Taken . | . . . . . . . Unknown Exits Taken 6 | 1 1 1 1 1 1 . Scrap Searched . | . . . . . . . Spaces Dug . | . . . . . . . Terrain Destroyed 227 | . 14 . . . 144 69 Melee . | . . . . . . . Projectile . | . . . . . . . AOE 227 | . 14 . . . 144 69 Terrain Rammed . | . . . . . . . Walls Destroyed . | . . . . . . . Machines Disabled . | . . . . . . . Actions | -11 -10 -10 -10 -9 -8 -8 --------- Run | Scr Mat Min Exi Min Mat Sto Total 4227 | 72 1018 184 328 232 1953 440 Wait 484 | . 117 9 . 9 269 80 Move 3055 | 56 744 165 319 212 1334 225 Hop . | . . . . . . . Pick Up 84 | 7 28 . 3 1 32 13 Fast Attach 49 | 5 7 . . . 26 11 Attach 33 | 1 3 . . 2 20 7 Detach 9 | . . . 2 . 6 1 Swap 57 | . 11 2 1 . 36 7 Drop 79 | . 22 . 3 . 47 7 Fire 349 | . 71 8 . 7 178 85 Melee . | . . . . . . . Ram . | . . . . . . . Kick . | . . . . . . . Crush 28 | 3 15 . . 1 5 4 Escape Stasis . | . . . . . . . Rewire . | . . . . . . . Trap . | . . . . . . . Miscellaneous . | . . . . . . . Route ------- -11/Scrapyard -10/Materials (discovered 5 exits: [*Mat x3] / [*Min x2]) -10/Mines -10/Exiles -9/Mines -8/Materials (discovered 3 exits: [*Fac x2] / *Sto) -8/Storage History --------- Turn | Location | Event 12 | -11/Scrapyard | Discovered new exit (range 16) 103 | -11/Scrapyard | Entered Materials 171 | -10/Materials | Discovered new exit (range 6) 305 | -10/Materials | Build established: Mutant 658 | -10/Materials | Central database locked down 738 | -10/Materials | Discovered new exit (range 12) 986 | -10/Materials | Discovered new exit (range 16) 1227 | -10/Materials | Repaired Particle Gun 1254 | -10/Materials | Repaired Lgt. Treads 1281 | -10/Materials | Repaired Lgt. Treads 1320 | -10/Materials | Discovered new exit (range 15) 1469 | -10/Materials | Discovered new exit (range 12) 1698 | -10/Materials | Entered Mines 1738 | -10/Mines | Met a Derelict bent on vengeance 1764 | -10/Mines | Learned Materials trap positions 1798 | -10/Mines | Core integrity fell below 50% 1990 | -10/Mines | Deemed a non-threat by the Exiles lab entrance 1992 | -10/Mines | Discovered new exit (range 5) 1998 | -10/Mines | Entered Exiles 2042 | -10/Exiles | Met 8R-AWN 2066 | -10/Exiles | Met EX-HEX 2130 | -10/Exiles | Met EX-DEC 2136 | -10/Exiles | Learned location of Zion (-7) 2619 | -10/Exiles | Discovered new exit (range 14) 2653 | -10/Exiles | Entered Mines 2656 | -9/Mines | Received a Mining Laser from a helpful Derelict 2870 | -9/Mines | Found the Drone Emporium 2965 | -9/Mines | Found Prototype Device 3016 | -9/Mines | Discovered new exit (range 10) 3198 | -9/Mines | Entered Materials 3198 | -8/Materials | Evolved 4 slots: Propulsion x1, Utility x3 3199 | -8/Materials | Loaded intel: 19 trap records 3338 | -8/Materials | Lost 3 parts (1p1n1w) 3377 | -8/Materials | Discovered new exit (range 15) 4316 | -8/Materials | Identified Bomb Drone Bay 4533 | -8/Materials | Discovered new exit (range 8) 4613 | -8/Materials | Build established: Scavenger-Mutant 5152 | -8/Materials | Repaired Broken Lgt. Treads 5179 | -8/Materials | Repaired Lgt. Treads 5481 | -8/Materials | Repaired Lgt. Treads 5527 | -8/Materials | Repaired Imp. Deuterium Engine 5601 | -8/Materials | Discovered new exit (range 12) 6398 | -8/Materials | First assault squad dispatched 6525 | -8/Materials | Destroyed 8 combat bots 6569 | -8/Materials | Lost 3 parts (1n1u1w) 7056 | -8/Materials | Core integrity fell below 50% 7087 | -8/Materials | Sterilization system engaged 7087 | -8/Materials | Non-combat units ordered to evacuate 7103 | -8/Materials | Lost 4 parts (2n1u1w) 7187 | -8/Materials | Combat units ordered to evacuate 7294 | -8/Materials | Entered Storage 7473 | -8/Storage | Lost 7 parts (1p3n3u) 7539 | -8/Storage | Repaired Lgt. Treads 7572 | -8/Storage | Repaired Beam Rifle 7669 | -8/Storage | Garrison activated, responded to threat 7690 | -8/Storage | Core integrity fell below 20% 7700 | -8/Storage | Build established: Mutant 8165 | -8/Storage | Build established: Scavenger-Mutant 8199 | -8/Storage | Destroyed by G-47 Trooper with Particle Gun Last Messages --------------- 08077_ System corrupted: Heat flow error (+162). 08083_ K-01 Serf collects debris. 08091_ Crushed K-01 Serf. 08091_ K-01 Serf destroyed. 08120_ Dropped Beam Rifle. 08121_ Acquired Unknown Ballistic Gun. 08121_ Identified Shotgun. 08122_ Dropped Shotgun. 08125_ Acquired Beam Rifle. 08146_ Connecting with Terminal... 08146_ ALERT: Suspicious activity at Terminal S012. Dispatching Investigation squad. 08178_ Y-45 Defender destroyed. 08178_ Switching to secondary target: G-47 Trooper. 08182_ Critical hit (Burn: +37). 08186_ Beam Rifle destroyed. 08187_ System corrupted: Hvy. Assault Rifle jammed. 08193_ K-01 Serf collects debris. 08196_ G-47 Trooper destroyed. 08197_ K-01 Serf collects debris. Map ----- +----------------------------------------------------+ | ???????????????????????????? | | ???????????????????????????? | | ???????????????????????????? | | ???????????????????????????? | | ???????????????????????????? | | ???????????????????????????? | | ???????????????????????????? | | ???????????????????????????? | | ???????????????????????????? | | ???????????????????????????? | | ?? !k!?????????????????????? | | ?? ???????????????????? | | ?? = ##??????????????????? | | ??[%! #??????????????????? | | ?? * #??????????????????? | | ?? g ???????????????????? | | ?? ???????????????????? | | ?? ##??????????????????? | | ?? ???????????????????? | | ?? ???????????????????? | | ??# ????????????????????? | | ??# #????????????????????? | | ??# #????????????????????? | | ??# #????????????????????? | | ??# #????????????????????? | | ??#@ #????????????????????? | | ??# a#????????????????????? | | ??# #????????????????????? | | ??# #????????????????????? | | ??# #????????????????????? | | ??# #????????????????????? | | ??# #????????????????????? | | ??# #????????????????????? | | ??# #????????????????????? | | ??# #????????????????????? | | ### #????????????????????? | | #"" #????????????????????? | | #"T #????????????????????? | | #"" #??????###########???? | | ### ######## !!! #???? | | ??# + !!! !##### | | ??# ######## !!! !=#!* | | ??# #??????# =%%% [! | | ####/######??# *=#! ! | | # #??# "T"=#+### | | # #### """ #%*? | | # [[ ""## #""? | | # [[ Y"##### ######""" | | # [ ""#???###????#""" | | # ###??????????? | +----------------------------------------------------+ Best States ------------- Heat Dissipation 59 Energy Generation 18 Energy Capacity 290 Matter Stores 300 Matter Capacity 300 Sight Range 16 Terrain Scan Density 10 Armor Coverage 750 Core Shielding 20 Evasion (%) 40 Targeting Accuracy 6 Recoil Reduction 3 Item Schematics ----------------- Huge Storage Unit | -8/Materials | Hacked Missile Launcher | -8/Materials | Hacked Robot Schematics ------------------ None Fabricated ------------ Nothing Alien Tech Used ----------------- None Achievements -------------- None Challenges ------------ None Game ------ Seed GlidesysMetafieldScanner Manual? 0 Play Time 00:37:57 Cumulative 494.1 hours Start 2022.06.23 @ 19:17:49 End 2022.06.23 @ 19:51:17 Sessions 1 Manual Loads 0 Difficulty Rogue Special Mode None Game No. 465 Rogue 465 Adventurer 0 Explorer 0 Win Type - Total 22 Types 13/2/4/2/0/0/0/1/0 Lore% 94 Gallery% 93 Achievement% 78 Wizard Run 0 Options --------- ASCII 0 Keyboard 0 Movement Arrows Keybinds 0 Fullscreen 1 Font 18/Smallcaps Map View 76x50 Tactical HUD 1 Map Filters NONE Filters NONE Steam 1 RUN: 9b99691d-f4af-44b5-ba86-84a1aff745e3